bitfinex-derivatives/quotes_ETHF0:USTF0_20251216
["timestamp","ask_amount","ask_price","bid_price","bid_amount"]
[1765892963606,3.2078,2932.2,2931.6,0.8112]
[1765892964103,3.2078,2932.2,2932.1,2.721]
[1765892964300,3.2078,2932.5,2932.4,2.721]
[1765892964508,0.00350025,2932.5,2932.4,2.72457086]
[1765892964697,1.32560025,2932.5,2932.4,0.00357086]
[1765892964896,0.00350025,2932.5,2932.4,2.72457086]
[1765892965611,1.32560025,2932.5,2932.4,0.00357086]
[1765892965910,0.00350025,2932.5,2932.4,2.72457086]
[1765892968509,2.5e-07,2932.5,2932.4,2.72457086]
[1765892968710,2.5e-07,2932.5,2932.4,5.93237086]
[1765892970708,2.68100025,2932.5,2932.4,0.00357086]
[1765892970900,5.88880025,2932.5,2932.4,0.00357086]
[1765892971101,6.05934025,2932.5,2932.4,0.00357086]
[1765892971313,2.681,2932.0,2931.9,0.005124]
[1765892972010,43.481,2932.0,2931.9,0.005124]
[1765892972205,43.481,2932.0,2931.9,0.00866302]
[1765892972705,40.8,2932.0,2931.6,0.8112]
[1765892973605,40.8,2932.0,2931.6,0.81497849]
[1765892975202,2.6726,2931.7,2931.6,0.00377849]
[1765892975509,40.8,2932.0,2931.9,2.8268]
[1765892975703,3.21289401,2932.1,2932.0,1.3884]
[1765892975904,3.21289401,2932.1,2932.0,2.8268]
[1765892975905,0.00509401,2932.1,2932.0,2.8268]
[1765892976709,2.5e-07,2932.5,2932.2,0.8216]
[1765892976906,2.5e-07,2932.5,2932.3,3.2078]
[1765892977110,3.2078,2932.8,2932.3,0.17054]
[1765892977306,0.8793885,2933.4,2932.8,0.8216]
[1765892977602,40.8,2933.3,2932.8,0.8216]
[1765892978213,40.8041845,2933.3,2932.8,0.8216]
[1765892978411,2.8134,2932.9,2932.4,3.2078]
[1765892978711,1.4629,2932.9,2932.4,3.2078]
[1765892980707,1.4629,2932.5,2932.4,3.2078]
[1765892980909,0.88007455,2933.1,2932.4,3.2078]
[1765892981118,3.3783,2933.2,2932.4,3.2078]
[1765892981321,0.88007269,2933.1,2932.4,3.2078]
[1765892981511,0.88007269,2933.0,2932.4,3.2078]
[1765892981718,4.08815444,2932.9,2932.4,3.2078]
[1765892982019,0.88035444,2932.8,2932.4,3.2078]
[1765892982215,0.88085431,2932.7,2932.4,3.2078]
[1765892982518,3.2078,2932.9,2932.4,3.2078]
[1765892982716,0.8808594,2932.8,2932.4,3.2078]
[1765892982921,0.8808594,2932.7,2932.4,3.2078]
[1765892983218,2.8134,2932.5,2932.4,3.2078]
[1765892983608,2.8134,2932.1,2932.0,3.2078]
[1765892984013,3.2078,2932.6,2932.0,4.5962]
[1765892984316,3.2078,2932.6,2932.5,1.3884]
[1765892984612,4.08934429,2933.2,2932.8,0.8216]
[1765892984826,3.2078,2933.2,2932.8,0.8216]
[1765892985020,0.8816762,2933.1,2932.8,0.8216]
[1765892985214,6.0212,2932.9,2932.2,4.0294]
[1765892985515,6.0212,2932.9,2932.2,0.8216]
[1765892985718,3.2078,2932.6,2932.2,0.8216]
[1765892985916,1.4629,2932.3,2932.2,0.8216]
[1765892986116,1.4629,2932.3,2931.6,4.03317849]
[1765892986117,6.0212,2932.3,2931.6,4.03317849]
[1765892986615,1.4629,2931.7,2931.6,4.03317849]
[1765892987021,0.88207025,2932.0,2931.6,4.03317849]
[1765892987324,0.88241074,2932.2,2931.6,6.85997849]
[1765892987518,3.2078,2932.3,2931.6,6.85997849]
[1765892987716,1.4629,2931.7,2931.6,4.03317849]
[1765892988123,3.2078,2932.3,2931.6,4.03317849]
[1765892988419,1.4629,2931.7,2931.6,4.03317849]
[1765892988812,0.88236296,2932.0,2931.9,2.8268]
[1765892989009,0.88236296,2932.2,2932.1,2.8268]
[1765892989214,3.2078,2932.3,2932.2,0.8216]
[1765892990418,3.2078,2932.3,2932.2,3.6484]
[1765892991024,3.2078,2932.7,2932.2,3.6484]
[1765892993720,3.2078,2932.7,2932.6,2.8268]
[1765892994318,3.2078,2933.0,2932.9,2.8268]
[1765892995123,4.6707,2933.0,2932.8,0.8216]
[1765892995521,0.0041845,2933.3,2933.2,1.3884]
[1765892995922,42.2670845,2933.3,2932.8,0.8216]
[1765892996325,3.2078,2933.1,2932.8,0.8216]
[1765892996623,1.4629,2932.9,2932.8,0.8216]
[1765892996929,2.8134,2932.9,2932.8,0.8216]
[1765892997822,2.8134,2932.9,2932.3,3.2078]
[1765892998023,2.8134,2932.9,2931.9,5.50222581]
[1765892998024,3.2078,2932.7,2932.0,3.2078]
[1765892998431,2.8134,2932.1,2932.0,3.2078]
[1765892998629,3.2078,2932.4,2931.8,1.3884]
[1765892999121,1.4629,2931.8,2931.7,3.2078]
[1765892999327,3.37834,2932.4,2931.7,3.2078]
[1765892999328,3.37834,2932.4,2931.7,4.5962]
[1765893000030,3.2078,2932.4,2931.7,4.5962]
[1765893000428,3.2078,2932.4,2932.3,1.3884]
[1765893000932,3.2078,2932.4,2932.2,0.8216]
[1765893001942,3.2078,2932.7,2932.6,2.8268]
[1765893002230,1.4629,2932.7,2932.3,3.2078]
[1765893002533,3.2078,2933.0,2932.9,2.8268]
[1765893002926,3.2078,2933.7,2933.6,1.3884]
[1765893003730,3.2078,2933.7,2933.4,0.82671499]
[1765893004032,3.21170674,2933.7,2933.4,0.82671499]
[1765893004226,2.6319,2933.5,2933.4,0.00511499]
[1765893004826,1.3471,2933.5,2933.4,0.00511499]
[1765893005027,0.00390674,2933.7,2933.6,2.4893]
[1765893005427,16.447,2934.9,2934.2,2.4893]
[1765893005428,3.2078,2934.3,2934.2,2.4893]
[1765893006435,3.21184967,2934.3,2934.2,2.49244148]
[1765893006822,5.84374967,2934.3,2934.2,0.00314148]
[1765893007023,1.35114967,2934.3,2934.2,0.00314148]
[1765893007235,2.63594967,2934.3,2934.2,0.00314148]
[1765893008028,0.00404967,2934.3,2934.2,2.49244148]
[1765893008229,0.00404967,2934.3,2934.2,5.70024148]
[1765893009542,0.00404967,2934.3,2934.2,14.00433697]
[1765893009834,4.967e-05,2934.3,2934.2,14.00433697]
[1765893010030,3.2078,2935.2,2935.1,2.4893]
[1765893010443,3.2078,2935.5,2935.4,2.4893]
[1765893010835,40.8,2936.6,2935.5,2.4893]
[1765893011135,1.3471,2935.6,2935.2,0.7986]
[1765893011337,1.3471,2935.6,2935.2,4.0064]
[1765893011841,3.2078,2936.0,2935.2,4.0064]
[1765893012337,3.2078,2935.7,2935.2,0.7986]
[1765893012543,3.2078,2936.1,2935.2,4.0064]
[1765893014236,3.2078,2936.1,2936.0,2.4893]
[1765893014545,2.6319,2935.9,2935.5,3.2078]
[1765893016145,1.3471,2935.9,2935.8,0.7986]
[1765893016435,3.2078,2936.1,2935.8,0.7986]
[1765893016747,3.2078,2936.1,2936.0,1.2641]
[1765893016937,3.2078,2936.1,2936.0,2.4893]
[1765893017239,3.2078,2936.1,2936.0,1.2641]
[1765893018038,3.2078,2936.1,2935.5,5.2705]
[1765893018542,3.2078,2936.4,2935.5,5.2705]
[1765893020943,3.2078,2936.4,2936.0,0.7986]
[1765893021145,3.2078,2936.4,2936.3,1.2641]
[1765893021345,4.5549,2936.4,2936.3,0.00358651]
[1765893021645,0.0024782,2936.6,2936.5,3.2879]
[1765893022543,1.3471,2936.4,2936.3,0.00358651]
[1765893022744,2.6319,2936.4,2936.3,0.00358651]
[1765893023148,5.8397,2936.4,2936.3,0.00358651]
[1765893023342,2.6319,2936.4,2936.3,0.00358651]
[1765893023547,0.0024782,2936.6,2936.3,1.26768651]
[1765893023851,0.0024782,2936.6,2936.5,3.2879]
[1765893024148,1.3495782,2936.6,2936.5,0.7986]
[1765893024943,2.6343782,2936.6,2936.5,0.7986]
[1765893025652,2.6319,2936.4,2936.3,0.00358651]
[1765893025942,0.0024782,2936.6,2936.5,0.7986]
[1765893026139,0.0024782,2936.6,2936.5,3.2879]
[1765893027047,1.3471,2936.4,2936.3,0.00358651]
[1765893027247,1.3495782,2936.6,2936.5,0.7986]
[1765893027448,3.2102782,2936.6,2936.5,2.0627]
[1765893027642,3.2102782,2936.6,2936.5,3.2879]
[1765893028050,0.0024782,2936.6,2936.5,3.2879]
[1765893028546,3.2078,2937.3,2936.5,3.2879]
[1765893028749,3.2078,2937.3,2937.2,1.2641]
[1765893028948,40.8,2937.9,2937.5,0.7986]
[1765893029542,3.2078,2938.0,2937.5,0.7986]
[1765893029742,0.00321418,2937.9,2937.8,1.2641]
[1765893029948,0.00321418,2937.9,2937.8,2.4893]
[1765893031052,0.00321418,2937.9,2937.8,5.6971]
[1765893031652,1.418e-05,2937.9,2937.8,14.29606519]
[1765893031854,1.418e-05,2937.9,2937.8,14.46629519]
[1765893034846,40.8,2939.4,2939.1,1.2641]
[1765893035151,2.3237,2939.1,2939.0,0.00510604]
[1765893035553,2.3237,2938.5,2938.4,3.2078]
[1765893035758,2.32694881,2938.5,2938.4,0.00404583]
[1765893036148,2.32694881,2938.5,2938.1,3.2078]
[1765893036149,2.3237,2938.2,2938.1,3.2078]
[1765893036549,0.00507614,2938.4,2938.3,1.2557]
[1765893036853,0.00507614,2938.4,2938.3,2.49]
[1765893037051,0.00507614,2938.4,2938.3,2.49303833]
[1765893038455,2.32877614,2938.4,2938.3,0.00303833]
[1765893038859,2.3237,2938.0,2937.9,0.00510604]
[1765893039452,2.3237,2938.0,2936.9,7.702]
[1765893039453,1.1721,2936.9,2936.8,3.2078]
[1765893039759,0.17025,2937.5,2936.8,3.21037444]
[1765893039959,40.8,2937.4,2936.8,3.21037444]
[1765893040365,3.2078,2937.3,2936.8,3.21037444]
[1765893040655,3.2078,2937.3,2937.0,0.7006]
[1765893041253,3.2078,2938.0,2937.6,0.7006]
[1765893041451,1.1721,2937.7,2937.6,0.7006]
[1765893041657,40.8,2937.9,2937.6,0.7006]
[1765893041858,1.1721,2937.7,2937.6,0.7006]
[1765893042964,40.8,2937.9,2937.6,0.7006]
[1765893043260,2.3237,2937.7,2937.2,3.2078]
[1765893043459,40.8,2937.9,2937.0,0.7006]
[1765893043460,1.1721,2937.1,2937.0,0.7006]
[1765893044161,2.3237,2936.9,2936.8,0.00768048]
[1765893045161,1.1721,2936.9,2936.8,0.00768048]
[1765893045463,3.37805,2937.4,2936.8,0.00768048]
[1765893045664,0.89213932,2937.3,2936.8,0.00768048]
[1765893046657,2.3165,2936.9,2936.8,0.00768048]
[1765893047956,0.89213932,2937.3,2936.8,0.00768048]
[1765893048155,3.2078,2937.7,2937.0,3.9084]
[1765893048459,1.1406,2937.1,2937.0,0.7006]
[1765893049667,3.2078,2937.7,2936.8,0.00768048]
[1765893049668,1.1164,2936.9,2936.8,0.00768048]
[1765893050062,2.2328,2936.9,2936.8,0.00768048]
[1765893050567,1.1164,2936.9,2936.8,0.00768048]
[1765893050767,3.37805,2937.4,2936.8,0.00768048]
[1765893052058,3.2078,2937.4,2936.8,0.00768048]
[1765893053762,0.89213932,2937.8,2936.8,0.00768048]
[1765893053959,0.89213932,2937.7,2936.8,0.00768048]
[1765893054160,3.2078,2937.5,2936.8,0.00768048]
[1765893055969,1.0448,2936.9,2936.8,0.00768048]
[1765893056469,3.2078,2937.5,2936.8,1.26338048]
[1765893058587,1.0448,2936.9,2936.8,1.26338048]
[1765893058871,3.2078,2937.5,2936.8,2.49768048]
[1765893060263,3.2078,2937.5,2937.0,0.7006]
[1765893060468,0.9862,2937.1,2937.0,3.9084]
[1765893060970,1.9724,2936.9,2936.8,0.00768048]
[1765893062771,2.14268,2936.9,2936.8,0.00768048]
[1765893063074,1.9724,2936.9,2936.8,0.00768048]
[1765893063271,42.7724,2936.9,2936.8,0.00768048]
[1765893065568,40.8,2936.9,2936.8,2.18608048]
[1765893066381,0.9277,2936.9,2936.8,1.10128048]
[1765893067076,3.2078,2937.1,2937.0,2.8386]
[1765893067378,0.9163,2937.1,2937.0,0.6602]
[1765893067575,1.8098,2936.9,2936.8,0.00768048]
[1765893069477,1.7492,2936.7,2936.6,3.2078]
[1765893069676,1.7492,2936.4,2936.3,3.2078]
[1765893069979,3.37808,2937.0,2936.3,4.3014]
[1765893070274,0.8746,2936.4,2936.3,3.2078]
[1765893070486,1.75179164,2936.4,2936.3,3.21211373]
[1765893070677,0.87719164,2936.4,2936.3,3.21211373]
[1765893070978,1.74049164,2936.4,2936.3,3.21211373]
[1765893071680,1.74049164,2936.4,2936.3,0.00431373]
[1765893071874,0.85599164,2936.4,2936.3,0.00431373]
[1765893072181,1.70939164,2936.4,2936.3,0.00431373]
[1765893072581,0.85599164,2936.4,2936.3,4.30571373]
[1765893072771,0.00259164,2936.4,2936.3,2.18271373]
[1765893073081,0.00259164,2936.4,2936.3,5.39051373]
[1765893073471,6.04e-06,2936.6,2936.5,3.0089]
[1765893073675,3.2078,2937.6,2937.5,1.7538]
[1765893073877,4.0439,2937.6,2937.5,1.7538]
[1765893074077,4.0439,2937.6,2937.5,0.6602]
[1765893074277,4.88,2937.6,2937.5,0.6602]
[1765893074474,4.03704,2937.6,2937.5,0.6602]
[1765893075175,0.00384,2937.6,2937.5,2.8386]
[1765893078578,1.60114,2937.6,2937.5,0.6602]
[1765893079375,1.5533,2937.4,2937.3,3.2078]
[1765893080285,1.5533,2937.4,2936.5,0.6602]
[1765893080286,1.5424,2936.8,2936.7,3.2078]
[1765893080980,1.5424,2936.8,2936.3,0.00431373]
[1765893080981,0.7603,2936.4,2936.3,0.00431373]
[1765893081180,1.5206,2936.4,2936.3,0.00431373]
[1765893081481,0.7603,2936.4,2936.3,0.00431373]
[1765893082380,1.5098,2936.4,2936.3,0.00431373]
[1765893082990,3.2078,2936.9,2936.8,2.1784]
[1765893083181,40.8,2937.2,2937.0,0.6602]
[1765893083383,3.2078,2937.4,2937.0,0.6602]
[1765893083588,1.45944,2937.6,2937.5,0.6602]
[1765893083889,40.80384,2937.6,2937.5,2.8386]
[1765893084079,0.00384,2937.6,2937.5,2.8386]
[1765893085077,0.00384,2937.6,2937.1,3.2078]
[1765893085283,0.7171,2937.1,2937.0,0.6602]
[1765893085481,1.4342,2937.1,2937.0,0.6602]
[1765893085676,1.4128,2936.6,2936.5,3.868]
[1765893085892,1.4128,2936.6,2936.5,3.2078]
[1765893086389,3.37807,2937.1,2936.5,4.3014]
[1765893086596,1.3914,2936.6,2936.5,3.2078]
[1765893087686,0.17027,2937.0,2936.5,4.3014]
[1765893087882,0.17027,2937.0,2936.5,1.0936]
[1765893088292,0.17027,2937.0,2936.4,0.6602]
[1765893090188,4.5356,2937.1,2937.0,0.6602]
[1765893090393,3.8717,2937.1,2937.0,0.6602]
[1765893090887,0.6533,2936.5,2936.4,0.6602]
[1765893091092,40.8,2937.3,2936.4,1.7538]
[1765893091093,3.2078,2936.8,2936.4,1.7538]
[1765893091681,0.6533,2936.5,2936.4,0.6602]
[1765893092187,3.2078,2936.8,2936.4,1.7538]
[1765893095792,3.2078,2936.8,2936.7,2.0657]
[1765893096098,3.8089,2936.8,2936.4,0.6602]
[1765893096290,0.6011,2936.5,2936.4,0.6602]
[1765893097191,0.6011,2936.5,2936.4,1.648]
[1765893097392,0.5805,2936.5,2936.4,0.6602]
[1765893097592,1.161,2936.5,2936.4,0.6602]
[1765893099598,0.5805,2936.5,2936.4,1.648]
[1765893100396,3.7678,2936.8,2936.7,0.9878]
[1765893100696,3.2078,2936.8,2936.7,1.9599]
[1765893101592,4.287,2937.1,2937.0,0.5712]
[1765893101790,0.5396,2936.6,2936.4,0.6602]
[1765893101991,0.5396,2936.5,2936.4,1.648]
[1765893102295,1.0792,2936.5,2936.4,0.6602]
[1765893102495,3.2078,2936.8,2936.7,0.9878]
[1765893102694,3.7373,2936.8,2936.7,0.9878]
[1765893103101,6.2073,2936.8,2936.7,0.9878]
[1765893103302,6.2073,2936.8,2936.4,0.6602]
[1765893103500,2.47,2936.8,2936.7,1.9599]
[1765893104191,3.2078,2937.1,2937.0,0.9878]
[1765893104392,2.25,2937.1,2937.0,2.5311]
[1765893106099,3.2486,2937.1,2936.4,3.868]
[1765893106296,6.4564,2937.1,2936.4,3.868]
[1765893106498,0.9786,2936.4,2936.3,0.00431373]
[1765893106699,3.3186,2936.4,2936.3,0.00431373]
[1765893106900,2.8293,2936.4,2936.3,0.00431373]
[1765893107105,3.2078,2936.8,2936.5,0.5712]
[1765893107305,6.2871,2936.8,2936.5,0.5712]
[1765893107508,0.4794,2936.6,2936.5,0.5712]
[1765893107706,3.0694,2936.6,2936.5,0.5712]
[1765893108005,2.59,2936.6,2936.5,2.5311]
[1765893108607,2.59,2936.6,2936.5,1.559]
[1765893108800,2.59,2936.6,2936.5,2.5311]
[1765893109202,3.5288,2936.6,2936.5,0.5712]
[1765893109508,3.0594,2936.6,2936.5,0.5712]
[1765893109697,3.0496,2936.6,2936.5,1.559]
[1765893110502,2.59,2936.6,2936.5,2.5311]
[1765893111008,3.2078,2936.8,2936.7,1.9599]
[1765893111206,5.4178,2936.8,2936.7,1.9599]
[1765893111408,4.1178,2936.8,2936.7,1.9599]
[1765893111600,5.8978,2936.8,2936.7,1.9599]
[1765893111805,3.2078,2936.8,2936.7,1.9599]
[1765893112001,3.9278,2936.8,2936.7,1.9599]
[1765893112310,3.2078,2936.8,2936.7,1.9599]
[1765893112506,3.2078,2937.4,2937.0,2.5311]
[1765893112711,43.3,2937.3,2937.0,2.5311]
[1765893112913,43.3,2937.3,2937.2,0.9878]
[1765893113516,0.8406,2936.6,2936.5,3.779]
[1765893113717,44.0078,2937.3,2936.9,0.9878]
[1765893114011,0.4203,2937.0,2936.9,0.9878]
[1765893114209,0.4203,2936.6,2936.5,1.559]
[1765893114418,2.8103,2936.6,2936.5,1.559]
[1765893115004,2.39,2936.6,2936.5,2.5311]
[1765893115206,3.2078,2937.2,2937.1,0.9878]
[1765893115407,5.4378,2937.2,2937.1,0.9878]
[1765893115608,5.8484,2937.2,2937.1,0.9878]
[1765893116015,5.8484,2937.2,2937.0,0.5712]
[1765893116016,0.8018,2937.1,2937.0,0.5712]
[1765893116213,3.1718,2937.1,2937.0,0.5712]
[1765893116718,2.37,2937.1,2937.0,1.559]
[1765893117016,0.7824,2936.6,2936.5,0.5712]
[1765893117215,3.0824,2936.6,2936.5,0.5712]
[1765893117919,2.3,2936.6,2936.5,2.5311]
[1765893119221,3.0536,2936.6,2936.5,0.5712]
[1765893119523,2.6816,2936.6,2936.5,0.5712]
[1765893119710,2.3,2936.6,2936.5,2.5311]
[1765893120017,3.0248,2936.6,2936.5,0.5712]
[1765893120217,2.6624,2936.6,2936.5,0.5712]
[1765893121118,3.0153,2936.6,2936.5,0.5712]
[1765893121319,2.6624,2936.6,2936.5,0.5712]
[1765893121516,2.3,2936.6,2936.5,2.5311]
[1765893121720,2.6434,2936.6,2936.5,0.5712]
[1765893121915,2.9868,2936.6,2936.5,0.5712]
[1765893122311,2.6434,2936.6,2936.5,0.5712]
[1765893122523,2.9868,2936.6,2936.5,0.5712]
[1765893123228,0.6678,2936.4,2936.3,0.00431373]
[1765893123423,2.9478,2936.4,2936.3,0.00431373]
[1765893124624,2.6139,2936.4,2936.3,0.87961373]
[1765893124818,2.28,2936.4,2936.3,1.73841373]
[1765893125219,2.5947,2936.4,2936.3,0.87961373]
[1765893125420,2.9094,2936.4,2936.3,0.00431373]
[1765893125721,3.2078,2936.8,2936.7,1.7341]
[1765893125916,0.69,2936.8,2936.7,1.7341]
[1765893126515,0.296,2936.6,2936.5,1.4344]
[1765893126719,3.062,2936.6,2936.5,0.5591]
[1765893126922,0.592,2936.4,2936.3,0.00431373]
[1765893127122,3.252,2936.4,2936.3,0.00431373]
[1765893127425,2.66,2936.4,2936.3,1.73841373]
[1765893127615,2.956,2936.4,2936.3,1.73841373]
[1765893127819,2.956,2936.4,2936.3,0.87961373]
[1765893128122,3.2427,2936.4,2936.3,0.00431373]
[1765893131328,6.4505,2936.4,2936.3,0.00431373]
[1765893132232,3.2078,2936.4,2936.3,1.73841373]
[1765893132424,5.6578,2936.4,2936.3,1.73841373]
[1765893133025,5.9075,2936.4,2936.3,1.73841373]
[1765893133422,4.5575,2936.4,2936.3,1.73841373]
[1765893133617,4.3078,2936.4,2936.3,1.73841373]
[1765893133929,1.1,2936.4,2936.3,1.73841373]
[1765893134125,3.2078,2937.1,2937.0,2.2932]
[1765893134427,2.39,2937.1,2937.0,2.2932]
[1765893134731,0.22614,2937.6,2937.5,2.2932]
[1765893134931,2.39614,2937.6,2937.5,2.2932]
[1765893135331,2.39614,2937.6,2937.5,1.4344]
[1765893135529,2.39614,2937.6,2937.5,0.5591]
[1765893135728,2.60944,2937.6,2937.5,0.5591]
[1765893136129,2.39614,2937.6,2937.5,0.5591]
[1765893136931,2.39614,2937.6,2937.5,1.4344]
[1765893137139,2.17384,2937.6,2937.5,2.2932]
[1765893138046,2.36904,2937.6,2937.5,0.5591]
[1765893138347,2.56424,2937.6,2937.5,0.5591]
[1765893138941,2.17384,2937.6,2937.5,2.2932]
[1765893139446,2.36004,2937.6,2937.5,2.2932]
[1765893139639,2.53734,2937.6,2937.5,0.5591]
[1765893140444,0.3457,2937.4,2937.3,3.2078]
[1765893140649,2.7273,2937.4,2937.3,4.0831]
[1765893141648,2.7273,2937.4,2937.3,4.9419]
[1765893142950,2.8779,2937.4,2937.3,3.2078]
[1765893144254,0.2836,2937.1,2937.0,0.5591]
[1765893144546,0.2836,2937.1,2936.5,0.5591]
[1765893144547,0.266,2936.7,2936.6,3.2078]
[1765893144747,2.656,2936.7,2936.6,3.2078]
[1765893144949,0.266,2936.4,2936.3,0.00431373]
[1765893145254,2.956,2936.4,2936.3,0.00431373]
[1765893146048,3.47721923,2936.4,2936.3,0.00431373]
[1765893146548,2.956,2936.4,2936.3,0.00431373]
[1765893147049,0.2224,2936.2,2936.1,0.00510604]
[1765893147252,6.0602,2936.2,2936.1,0.00510604]
[1765893147452,46.8602,2936.2,2936.1,0.00510604]
[1765893148152,46.8602,2936.2,2936.1,0.00948365]
[1765893148352,46.8602,2936.2,2935.5,3.7669]
[1765893148748,0.1888,2936.1,2936.0,0.5591]
[1765893148952,2.8488,2936.1,2936.0,0.5591]
[1765893149260,2.66,2936.1,2936.0,2.29731922]
[1765893149554,3.19227001,2936.1,2936.0,2.29731922]
[1765893149858,40.8,2936.2,2936.1,1.7341]
[1765893150154,3.2078,2937.0,2936.9,0.8753]
[1765893150352,6.5172399,2937.0,2936.5,0.5591]
[1765893150655,0.1574,2936.6,2936.5,0.5591]
[1765893150849,2.5574,2936.6,2936.5,0.5591]
[1765893151555,2.4787,2936.6,2936.5,2.2932]
[1765893151856,2.4,2936.6,2936.5,2.2932]
[1765893152556,2.4709,2936.6,2936.5,1.4344]
[1765893152949,2.5332,2936.6,2936.5,0.5591]
[1765893153456,0.1159,2936.2,2936.1,3.2078]
[1765893153649,0.1159,2936.2,2936.0,0.56321922]
[1765893153650,0.1072,2936.1,2936.0,0.56321922]
[1765893153846,2.5772,2936.1,2936.0,0.56321922]
[1765893156763,0.059,2935.6,2935.5,3.7669]
[1765893156949,2.2,2935.6,2935.5,5.4249]
[1765893157153,2.2295,2935.6,2935.5,3.7669]
[1765893157353,2.259,2935.6,2935.5,3.7669]
[1765893157858,2.2,2935.6,2935.5,5.42819406]
[1765893159258,40.8,2936.0,2935.9,0.8125]
[1765893159456,43.04,2936.0,2935.5,3.77019406]
[1765893159859,0.0114,2935.6,2935.5,3.77019406]
[1765893160157,2.3714,2935.6,2935.5,0.56239406]
[1765893161451,2.3714,2935.6,2935.5,0.00329406]
[1765893161656,0.17039,2935.0,2934.9,3.2078]
[1765893161955,0.17041,2934.7,2934.0,0.4868]
[1765893162253,3.2078,2934.3,2934.0,0.4868]
[1765893162457,5.4878,2934.3,2934.0,0.4868]
[1765893162662,5.49087409,2934.3,2934.0,0.48966744]
[1765893163660,5.66130409,2934.3,2934.0,0.00286744]
[1765893163864,2.77326919,2934.1,2932.9,3.2078]
[1765893164062,3.2078,2933.6,2932.9,3.2078]
[1765893164261,5.8678,2933.6,2932.6,3.2078]
[1765893164467,46.6678,2933.6,2932.6,3.2078]
[1765893164859,3.2078,2933.3,2933.0,0.49518347]
[1765893165064,5.4778,2933.3,2933.0,0.49518347]
[1765893165269,16.274,2933.2,2932.0,3.6946]
[1765893165562,16.274,2933.2,2932.0,0.4868]
[1765893165563,3.2078,2932.7,2932.0,0.4868]
[1765893165864,3.2078,2932.4,2932.0,0.4868]
[1765893166063,5.7778,2932.4,2932.0,0.4868]
[1765893166262,5.7778,2932.4,2932.0,0.48959601]
[1765893166963,0.00511492,2932.5,2932.4,1.658]
[1765893167264,2.24511492,2932.5,2932.4,0.8125]
[1765893167464,2.24511492,2932.5,2932.1,3.2078]
[1765893168058,3.2078,2932.3,2932.0,0.48959601]
[1765893168368,5.6678,2932.3,2932.0,0.48959601]
[1765893169968,40.8,2932.2,2932.0,0.48959601]
[1765893170170,43.45440651,2932.2,2932.1,1.658]
[1765893170772,43.45440651,2932.2,2932.1,0.8125]
[1765893170967,43.45440651,2932.2,2932.1,1.658]
[1765893171168,2.65440651,2932.2,2932.1,1.658]
[1765893171367,2.65440651,2932.2,2932.0,0.48959601]
[1765893171876,40.8,2932.1,2932.0,0.48959601]
[1765893172066,42.99,2932.1,2932.0,0.48959601]
[1765893172970,2.19,2932.1,2932.0,2.14759601]
[1765893173472,0.00440651,2932.2,2932.1,1.658]
[1765893173671,2.58440651,2932.2,2932.1,1.658]
[1765893173870,0.00511492,2932.5,2932.4,1.658]
[1765893174171,2.21511492,2932.5,2932.4,1.658]
[1765893174377,3.00711492,2932.5,2932.0,0.48959601]
[1765893174766,2.21805586,2932.5,2932.4,1.658]
[1765893174972,3.80425586,2932.5,2932.0,0.48959601]
[1765893175673,0.792,2932.1,2932.0,0.48959601]
[1765893175974,0.00805586,2932.5,2932.4,1.658]
[1765893176270,2.22805586,2932.5,2932.4,1.658]
[1765893176667,2.23163608,2932.7,2932.6,1.658]
[1765893176868,3.2078,2933.3,2933.2,1.658]
[1765893177174,3.6362,2933.3,2932.7,3.2078]
[1765893177575,1.5862,2932.8,2932.7,3.2078]
[1765893177770,4.0599883,2932.8,2932.7,3.2078]
[1765893177970,2.4737883,2932.8,2932.7,4.8658]
[1765893180471,0.0037883,2932.8,2932.7,4.8658]
[1765893180682,2.6837883,2932.8,2932.7,4.8658]
[1765893180982,4.2699883,2932.8,2932.7,3.2078]
[1765893181282,4.7709883,2932.8,2932.0,7.99039601]
[1765893181586,1.5862,2932.1,2932.0,0.00279601]
[1765893181778,3.9862,2932.1,2932.0,0.00279601]
[1765893182977,1.5862,2932.0,2931.0,3.6946]
[1765893183273,3.2078,2931.9,2931.0,3.6946]
[1765893183481,5.8478,2931.9,2931.0,3.6946]
[1765893183875,5.8478,2931.9,2931.2,0.00511492]
[1765893185078,5.8478,2931.9,2931.8,0.8125]
[1765893185272,7.04,2931.9,2931.2,0.00511492]
[1765893185469,2.3406,2931.3,2931.2,0.00511492]
[1765893185772,4.6306,2931.3,2931.2,0.00511492]
[1765893186169,2.29,2931.3,2931.2,1.10671492]
[1765893186577,2.29,2931.3,2931.2,2.23601492]
[1765893186977,1.1922,2931.9,2931.5,0.6698]
[1765893187287,3.2078,2932.2,2932.1,2.2309]
[1765893187579,1.1922,2932.1,2931.5,0.6698]
[1765893187780,3.6022,2932.1,2931.5,0.6698]
[1765893187975,3.6022,2932.1,2932.0,2.2309]
[1765893187976,2.41,2932.1,2932.0,2.2309]
[1765893188175,3.2078,2932.2,2932.1,2.2309]
[1765893188376,5.5478,2932.2,2932.1,2.2309]
[1765893188883,2.34,2932.2,2932.1,2.2309]
[1765893189087,3.2078,2932.5,2932.4,2.2309]
[1765893189384,3.2078,2932.5,2932.4,2.40144]
[1765893189587,3.2115883,2932.8,2932.4,2.40144]
[1765893189878,5.7315883,2932.8,2932.7,2.2309]
[1765893190192,5.7015883,2932.8,2932.4,2.40144]
[1765893190484,1.8837883,2932.8,2932.7,2.2309]
[1765893190686,1.1922,2932.6,2932.5,3.2078]
[1765893190981,0.0037883,2932.8,2932.7,2.2309]
[1765893191184,0.0037883,2932.8,2932.7,2.40142]
[1765893192177,1.1959883,2932.8,2932.7,0.17052]
[1765893192373,1.1922,2932.6,2932.2,0.6698]